[Event "Early-Titled-Tuesday-Blitz-February-27-2024"]
[Site "Chess.com"]
[Date "2024.02.27"]
[Round "6"]
[White "dealshark"]
[Black "GatoRojo150"]
[Result "0-1"]
[WhiteElo "2392"]
[BlackElo "2573"]
[TimeControl "180+1"]
[EndTime "9:03:07 PST"]
[Termination "GatoRojo150 won by checkmate"]

1. Nf3 {[%clk 0:03:00.9]} 1... d5 {[%clk 0:02:59.5]} 2. e3 {[%clk 0:03:01.3]}
2... c5 {[%clk 0:02:55.9]} 3. b3 {[%clk 0:02:59.5]} 3... Nc6 {[%clk 0:02:55.4]}
4. Bb2 {[%clk 0:02:58.8]} 4... Nf6 {[%clk 0:02:54.6]} 5. Bb5 {[%clk 0:02:56.5]}
5... Bd7 {[%clk 0:02:54.3]} 6. Bxc6 {[%clk 0:02:52.2]} 6... Bxc6 {[%clk
0:02:55.2]} 7. Ne5 {[%clk 0:02:52.1]} 7... Rc8 {[%clk 0:02:53.1]} 8. O-O {[%clk
0:02:51.7]} 8... e6 {[%clk 0:02:53.1]} 9. f4 {[%clk 0:02:51.3]} 9... Be7 {[%clk
0:02:53.3]} 10. Nc3 {[%clk 0:02:45.2]} 10... O-O {[%clk 0:02:51.9]} 11. Ne2
{[%clk 0:02:45.3]} 11... Be8 {[%clk 0:02:50]} 12. Qe1 {[%clk 0:02:45.2]} 12...
Nd7 {[%clk 0:02:50]} 13. Qg3 {[%clk 0:02:14.7]} 13... f6 {[%clk 0:02:48]} 14.
Nf3 {[%clk 0:02:04.3]} 14... Bg6 {[%clk 0:02:45.1]} 15. d3 {[%clk 0:01:46.1]}
15... c4 {[%clk 0:02:45.3]} 16. bxc4 {[%clk 0:01:45.6]} 16... dxc4 {[%clk
0:02:42]} 17. Nfd4 {[%clk 0:01:33.4]} 17... Qb6 {[%clk 0:02:38]} 18. Rab1 {[%clk
0:01:19.1]} 18... cxd3 {[%clk 0:02:37.2]} 19. cxd3 {[%clk 0:01:18.3]} 19... Bxd3
{[%clk 0:02:38.1]} 20. f5 {[%clk 0:01:05.6]} 20... Bxb1 {[%clk 0:02:30.6]} 21.
Nxe6 {[%clk 0:00:42.8]} 21... Rf7 {[%clk 0:02:30.4]} 22. Rxb1 {[%clk 0:00:38.6]}
22... Rc2 {[%clk 0:02:29.9]} 23. Rd1 {[%clk 0:00:16.7]} 23... Rxe2 {[%clk
0:02:07.3]} 24. Rxd7 {[%clk 0:00:13.5]} 24... Qxb2 {[%clk 0:02:01.5]} 25. Qb8+
{[%clk 0:00:04.3]} 25... Bf8 {[%clk 0:01:57.7]} 26. h3 {[%clk 0:00:01.2]} 26...
Rxg2+ {[%clk 0:01:56.2]} 27. Kh1 {[%clk 0:00:01.7]} 27... Re2 {[%clk 0:01:31]}
28. Rxf7 {[%clk 0:00:01.8]} 28... Re1# {[%clk 0:01:30.1]} 0-1

[Event "Early-Titled-Tuesday-Blitz-February-27-2024"]
[Site "Chess.com"]
[Date "2024.02.27"]
[Round "6"]
[White "kidagent"]
[Black "GlavkonVVS"]
[Result "1-0"]
[WhiteElo "2346"]
[BlackElo "2538"]
[TimeControl "180+1"]
[EndTime "9:03:08 PST"]
[Termination "kidagent won on time"]

1. c4 {[%clk 0:03:00.9]} 1... c5 {[%clk 0:02:40.1]} 2. g3 {[%clk 0:02:58.4]}
2... Nc6 {[%clk 0:02:38.8]} 3. Nc3 {[%clk 0:02:56.4]} 3... Nf6 {[%clk
0:02:03.2]} 4. Bg2 {[%clk 0:02:56.3]} 4... g6 {[%clk 0:02:03]} 5. e4 {[%clk
0:02:55.4]} 5... d6 {[%clk 0:01:58.6]} 6. Nge2 {[%clk 0:02:54.9]} 6... Bg7
{[%clk 0:01:54.7]} 7. O-O {[%clk 0:02:54.3]} 7... O-O {[%clk 0:01:26.2]} 8. a3
{[%clk 0:02:53.8]} 8... a6 {[%clk 0:01:26.6]} 9. Rb1 {[%clk 0:02:51.2]} 9... Bd7
{[%clk 0:01:26.7]} 10. b4 {[%clk 0:02:50.2]} 10... cxb4 {[%clk 0:01:27.1]} 11.
axb4 {[%clk 0:02:50.9]} 11... Rc8 {[%clk 0:01:27.6]} 12. d3 {[%clk 0:02:49.5]}
12... h6 {[%clk 0:01:23.9]} 13. h3 {[%clk 0:02:42.5]} 13... e5 {[%clk 0:01:15]}
14. Be3 {[%clk 0:02:41.8]} 14... Re8 {[%clk 0:01:05.5]} 15. b5 {[%clk
0:02:39.9]} 15... axb5 {[%clk 0:01:05.4]} 16. Nxb5 {[%clk 0:02:37.7]} 16... Be6
{[%clk 0:01:04.5]} 17. Qb3 {[%clk 0:02:24]} 17... Qd7 {[%clk 0:01:02.7]} 18. Kh2
{[%clk 0:02:22.7]} 18... Ra8 {[%clk 0:01:00.3]} 19. Bb6 {[%clk 0:02:15.8]} 19...
Rec8 {[%clk 0:00:55.7]} 20. Ra1 {[%clk 0:02:12.8]} 20... Ra6 {[%clk 0:00:07.9]}
21. Na7 {[%clk 0:01:46.6]} 21... Nxa7 {[%clk 0:00:06.9]} 22. Bxa7 {[%clk
0:01:44.2]} 22... Rxa1 {[%clk 0:00:06.5]} 23. Rxa1 {[%clk 0:01:44]} 23... Ra8
{[%clk 0:00:07.1]} 24. Qb6 {[%clk 0:01:34.6]} 24... Bf8 {[%clk 0:00:04.3]} 25.
Nc3 {[%clk 0:01:33.4]} 25... h5 {[%clk 0:00:02.5]} 26. Nd5 {[%clk 0:01:28]} 1-0

[Event "Early-Titled-Tuesday-Blitz-February-27-2024"]
[Site "Chess.com"]
[Date "2024.02.27"]
[Round "6"]
[White "bescmelasti"]
[Black "orkinyo12345"]
[Result "0-1"]
[WhiteElo "2633"]
[BlackElo "2483"]
[TimeControl "180+1"]
[EndTime "9:03:12 PST"]
[Termination "orkinyo12345 won by checkmate"]

1. e4 {[%clk 0:03:00.9]} 1... c5 {[%clk 0:02:57.5]} 2. Nf3 {[%clk 0:03:00.1]}
2... d6 {[%clk 0:02:56.6]} 3. d4 {[%clk 0:03:00.2]} 3... cxd4 {[%clk 0:02:57.5]}
4. Nxd4 {[%clk 0:03:00.7]} 4... Nf6 {[%clk 0:02:58]} 5. Nc3 {[%clk 0:03:01.4]}
5... a6 {[%clk 0:02:58.6]} 6. f4 {[%clk 0:03:00.6]} 6... e6 {[%clk 0:02:45.3]}
7. Qf3 {[%clk 0:03:00.5]} 7... Be7 {[%clk 0:02:45.5]} 8. Be3 {[%clk 0:02:58]}
8... Qc7 {[%clk 0:02:39.7]} 9. O-O-O {[%clk 0:02:53.7]} 9... b5 {[%clk
0:02:39.6]} 10. g4 {[%clk 0:02:29]} 10... b4 {[%clk 0:02:38.1]} 11. Na4 {[%clk
0:02:25]} 11... Bb7 {[%clk 0:02:37.8]} 12. Bd3 {[%clk 0:02:25.3]} 12... Nc6
{[%clk 0:01:56.7]} 13. Nb6 {[%clk 0:02:01.6]} 13... Qxb6 {[%clk 0:01:19.6]} 14.
Nxe6 {[%clk 0:02:01.1]} 14... Qa5 {[%clk 0:01:12.8]} 15. Nxg7+ {[%clk
0:01:59.5]} 15... Kf8 {[%clk 0:01:12.6]} 16. Nf5 {[%clk 0:02:00.4]} 16... Qxa2
{[%clk 0:01:11.5]} 17. e5 {[%clk 0:01:35]} 17... Na5 {[%clk 0:00:49.4]} 18. exf6
{[%clk 0:00:53.6]} 18... Bxf6 {[%clk 0:00:30.7]} 19. Be4 {[%clk 0:00:41.1]}
19... Nb3+ {[%clk 0:00:29.2]} 20. cxb3 {[%clk 0:00:40.9]} 20... Qxb2# {[%clk
0:00:30.1]} 0-1

[Event "Early-Titled-Tuesday-Blitz-February-27-2024"]
[Site "Chess.com"]
[Date "2024.02.27"]
[Round "6"]
[White "DeArron_Fox"]
[Black "Chessdude1987"]
[Result "0-1"]
[WhiteElo "2513"]
[BlackElo "2363"]
[TimeControl "180+1"]
[EndTime "9:03:15 PST"]
[Termination "Chessdude1987 won on time"]

1. d4 {[%clk 0:02:57.5]} 1... e6 {[%clk 0:03:00.1]} 2. c4 {[%clk 0:02:57.3]}
2... f5 {[%clk 0:03:00.4]} 3. g3 {[%clk 0:02:51.6]} 3... Nf6 {[%clk 0:03:00.8]}
4. Bg2 {[%clk 0:02:52]} 4... Bb4+ {[%clk 0:03:01]} 5. Bd2 {[%clk 0:02:51.4]}
5... Qe7 {[%clk 0:03:01.5]} 6. Nf3 {[%clk 0:02:51.3]} 6... Bxd2+ {[%clk
0:03:01.3]} 7. Nbxd2 {[%clk 0:02:41.9]} 7... d6 {[%clk 0:03:02.2]} 8. O-O {[%clk
0:02:42.1]} 8... e5 {[%clk 0:03:02.1]} 9. e4 {[%clk 0:02:30.4]} 9... fxe4 {[%clk
0:02:44.1]} 10. dxe5 {[%clk 0:02:26.5]} 10... dxe5 {[%clk 0:02:31]} 11. Ng5
{[%clk 0:02:13.9]} 11... O-O {[%clk 0:02:30.5]} 12. Ndxe4 {[%clk 0:02:01.3]}
12... Nc6 {[%clk 0:02:26.3]} 13. Nxf6+ {[%clk 0:01:15.8]} 13... Qxf6 {[%clk
0:02:26]} 14. Ne4 {[%clk 0:01:01.3]} 14... Qe7 {[%clk 0:02:25.5]} 15. Qd5+
{[%clk 0:00:56.8]} 15... Kh8 {[%clk 0:02:18.2]} 16. Rad1 {[%clk 0:00:29.6]}
16... h6 {[%clk 0:02:15.3]} 17. a3 {[%clk 0:00:18.7]} 17... Bg4 {[%clk
0:02:13.3]} 18. Rde1 {[%clk 0:00:10]} 18... Nd4 {[%clk 0:02:12.1]} 19. Nc3
{[%clk 0:00:03.8]} 19... Rae8 {[%clk 0:01:49.6]} 20. Qxb7 {[%clk 0:00:03.6]}
20... Nf3+ {[%clk 0:01:47.5]} 21. Bxf3 {[%clk 0:00:02.6]} 21... Bxf3 {[%clk
0:01:47.7]} 22. Nd5 {[%clk 0:00:02.9]} 22... Qe6 {[%clk 0:01:40.1]} 23. Qxc7
{[%clk 0:00:02.4]} 23... Qh3 {[%clk 0:01:24.9]} 24. Ne3 {[%clk 0:00:02.8]} 24...
Rf5 {[%clk 0:01:18.7]} 25. Rd1 {[%clk 0:00:02.1]} 25... Qxh2+ {[%clk 0:01:16.3]}
0-1

[Event "Early-Titled-Tuesday-Blitz-February-27-2024"]
[Site "Chess.com"]
[Date "2024.02.27"]
[Round "6"]
[White "IM_ArthurDW08"]
[Black "MITerryble"]
[Result "0-1"]
[WhiteElo "2833"]
[BlackElo "3026"]
[TimeControl "180+1"]
[EndTime "9:03:22 PST"]
[Termination "MITerryble won by resignation"]

1. e4 {[%clk 0:03:00.9]} 1... e6 {[%clk 0:03:00.3]} 2. d4 {[%clk 0:03:00.6]}
2... d5 {[%clk 0:03:01]} 3. Nc3 {[%clk 0:03:01.5]} 3... Nf6 {[%clk 0:03:01.1]}
4. Bg5 {[%clk 0:02:57.7]} 4... Bb4 {[%clk 0:03:00.9]} 5. e5 {[%clk 0:02:57.8]}
5... h6 {[%clk 0:03:01.4]} 6. Bd2 {[%clk 0:02:58.4]} 6... Bxc3 {[%clk
0:03:01.5]} 7. bxc3 {[%clk 0:02:59]} 7... Ne4 {[%clk 0:03:02.1]} 8. Bc1 {[%clk
0:02:59]} 8... c5 {[%clk 0:03:00.7]} 9. Ne2 {[%clk 0:02:58.5]} 9... cxd4 {[%clk
0:02:57.1]} 10. cxd4 {[%clk 0:02:58]} 10... Qa5+ {[%clk 0:02:55.4]} 11. c3
{[%clk 0:02:57.9]} 11... Nc6 {[%clk 0:02:55.3]} 12. Qb3 {[%clk 0:02:56.8]} 12...
Bd7 {[%clk 0:02:48.2]} 13. f3 {[%clk 0:02:31.4]} 13... Ng5 {[%clk 0:02:47.3]}
14. h4 {[%clk 0:02:32]} 14... Nh7 {[%clk 0:02:47.2]} 15. Bd2 {[%clk 0:02:19.3]}
15... O-O {[%clk 0:02:37.6]} 16. g4 {[%clk 0:02:12.5]} 16... Qc7 {[%clk
0:02:21.9]} 17. g5 {[%clk 0:02:07.9]} 17... h5 {[%clk 0:02:21.8]} 18. Nf4 {[%clk
0:01:47.8]} 18... g6 {[%clk 0:02:21.6]} 19. Rb1 {[%clk 0:01:39.8]} 19... b6
{[%clk 0:02:17.4]} 20. Bd3 {[%clk 0:01:37.6]} 20... Rfc8 {[%clk 0:02:10.4]} 21.
Kf2 {[%clk 0:01:32.4]} 21... Nf8 {[%clk 0:02:10.2]} 22. Rbc1 {[%clk 0:01:25.6]}
22... Na5 {[%clk 0:02:10.1]} 23. Qc2 {[%clk 0:01:24.8]} 23... Be8 {[%clk
0:02:10.7]} 24. Rhg1 {[%clk 0:01:01.3]} 24... Nc4 {[%clk 0:02:10]} 25. Be1
{[%clk 0:01:01.2]} 25... b5 {[%clk 0:02:07.7]} 26. Kg3 {[%clk 0:00:37.3]} 26...
a5 {[%clk 0:02:07.7]} 27. Bf2 {[%clk 0:00:37.2]} 27... Ra7 {[%clk 0:02:07.9]}
28. Kh2 {[%clk 0:00:35.8]} 28... Rb7 {[%clk 0:02:06.9]} 29. Nxh5 {[%clk
0:00:33.7]} 29... gxh5 {[%clk 0:02:06.7]} 30. g6 {[%clk 0:00:34.6]} 30... fxg6
{[%clk 0:02:06.1]} 31. Bxg6 {[%clk 0:00:35.5]} 31... Nxg6 {[%clk 0:01:54.5]} 32.
Rxg6+ {[%clk 0:00:36.4]} 32... Bxg6 {[%clk 0:01:54.4]} 33. Qxg6+ {[%clk
0:00:37.3]} 33... Kh8 {[%clk 0:01:55]} 34. Rg1 {[%clk 0:00:28.3]} 34... Qh7
{[%clk 0:01:54]} 35. Qxe6 {[%clk 0:00:23.4]} 35... Rg8 {[%clk 0:01:42.7]} 36.
Rg5 {[%clk 0:00:15.4]} 36... Rxg5 {[%clk 0:01:35.7]} 37. hxg5 {[%clk 0:00:16.3]}
37... Qf7 {[%clk 0:01:36.3]} 38. Qc8+ {[%clk 0:00:13.7]} 38... Kg7 {[%clk
0:01:29.7]} 39. e6 {[%clk 0:00:13.8]} 39... Qc7+ {[%clk 0:01:29.2]} 0-1

[Event "Early-Titled-Tuesday-Blitz-February-27-2024"]
[Site "Chess.com"]
[Date "2024.02.27"]
[Round "6"]
[White "dosto07"]
[Black "AndreyOstrovskiy"]
[Result "1-0"]
[WhiteElo "2502"]
[BlackElo "2651"]
[TimeControl "180+1"]
[EndTime "9:03:25 PST"]
[Termination "dosto07 won by resignation"]

1. e4 {[%clk 0:03:00.9]} 1... e5 {[%clk 0:02:58.8]} 2. Nf3 {[%clk 0:03:00.2]}
2... Nc6 {[%clk 0:02:44.7]} 3. Bb5 {[%clk 0:02:59.7]} 3... a6 {[%clk 0:02:43.1]}
4. Ba4 {[%clk 0:02:59.2]} 4... Nf6 {[%clk 0:02:42.7]} 5. O-O {[%clk 0:02:58.7]}
5... Be7 {[%clk 0:02:42.3]} 6. Re1 {[%clk 0:02:56.3]} 6... b5 {[%clk 0:02:42.7]}
7. Bb3 {[%clk 0:02:56.6]} 7... d6 {[%clk 0:02:43.6]} 8. c3 {[%clk 0:02:56.2]}
8... O-O {[%clk 0:02:43.6]} 9. a4 {[%clk 0:02:51.7]} 9... Bg4 {[%clk 0:02:39.1]}
10. h3 {[%clk 0:02:49.5]} 10... Bh5 {[%clk 0:02:37.7]} 11. d3 {[%clk 0:02:49.6]}
11... Na5 {[%clk 0:02:36.5]} 12. Bc2 {[%clk 0:02:44.7]} 12... c5 {[%clk
0:02:37]} 13. Nbd2 {[%clk 0:02:44.6]} 13... Nc6 {[%clk 0:02:33.4]} 14. Nf1
{[%clk 0:02:43.6]} 14... Nd7 {[%clk 0:02:25.5]} 15. Ng3 {[%clk 0:02:43.2]} 15...
Bg6 {[%clk 0:02:25]} 16. Bb3 {[%clk 0:02:38.1]} 16... Nb6 {[%clk 0:01:55.7]} 17.
axb5 {[%clk 0:02:15.4]} 17... axb5 {[%clk 0:01:54.4]} 18. Rxa8 {[%clk
0:02:15.9]} 18... Qxa8 {[%clk 0:01:54.8]} 19. h4 {[%clk 0:02:11.6]} 19... h6
{[%clk 0:01:45.1]} 20. h5 {[%clk 0:02:06.6]} 20... Bh7 {[%clk 0:01:44.9]} 21.
Nh2 {[%clk 0:02:05.9]} 21... c4 {[%clk 0:01:38.8]} 22. Bc2 {[%clk 0:01:53.9]}
22... b4 {[%clk 0:01:29.2]} 23. dxc4 {[%clk 0:01:46.9]} 23... bxc3 {[%clk
0:01:28.5]} 24. bxc3 {[%clk 0:01:41.4]} 24... Nxc4 {[%clk 0:01:27.4]} 25. Ng4
{[%clk 0:01:23.1]} 25... N6a5 {[%clk 0:01:19.3]} 26. Bd3 {[%clk 0:01:08.7]}
26... Qc8 {[%clk 0:01:16.9]} 27. Qe2 {[%clk 0:01:00]} 27... Re8 {[%clk 0:01:14]}
28. Rd1 {[%clk 0:00:34.3]} 28... Bf8 {[%clk 0:01:05.6]} 29. Bxh6 {[%clk
0:00:31.1]} 29... gxh6 {[%clk 0:01:01.4]} 30. Nf6+ {[%clk 0:00:30.6]} 30... Kh8
{[%clk 0:01:01.3]} 31. Nxe8 {[%clk 0:00:30.6]} 31... Qxe8 {[%clk 0:01:01]} 32.
Bxc4 {[%clk 0:00:30.1]} 1-0

[Event "Early-Titled-Tuesday-Blitz-February-27-2024"]
[Site "Chess.com"]
[Date "2024.02.27"]
[Round "6"]
[White "Balla_Tamas"]
[Black "ozates"]
[Result "1-0"]
[WhiteElo "2432"]
[BlackElo "2602"]
[TimeControl "180+1"]
[EndTime "9:03:25 PST"]
[Termination "Balla_Tamas won by resignation"]

1. e4 {[%clk 0:03:00.9]} 1... e5 {[%clk 0:02:58.5]} 2. Nf3 {[%clk 0:02:58.6]}
2... Nc6 {[%clk 0:02:58.1]} 3. d4 {[%clk 0:02:58.6]} 3... exd4 {[%clk
0:02:58.2]} 4. Nxd4 {[%clk 0:02:59.5]} 4... Nf6 {[%clk 0:02:58.1]} 5. Nxc6
{[%clk 0:02:58.7]} 5... bxc6 {[%clk 0:02:59]} 6. e5 {[%clk 0:02:59]} 6... Qe7
{[%clk 0:02:59.4]} 7. Qe2 {[%clk 0:02:58.7]} 7... Nd5 {[%clk 0:03:00]} 8. h4
{[%clk 0:02:58.4]} 8... g6 {[%clk 0:02:57.2]} 9. c4 {[%clk 0:02:54.7]} 9... Ba6
{[%clk 0:02:55.4]} 10. Bg5 {[%clk 0:02:51.9]} 10... Qb4+ {[%clk 0:02:55.3]} 11.
Qd2 {[%clk 0:01:56.8]} 11... Bxc4 {[%clk 0:02:53.3]} 12. Nc3 {[%clk 0:01:37.7]}
12... Bg7 {[%clk 0:02:46.9]} 13. h5 {[%clk 0:01:30.6]} 13... Bxe5 {[%clk
0:02:42.5]} 14. Rc1 {[%clk 0:01:20.8]} 14... O-O {[%clk 0:02:28.4]} 15. a3
{[%clk 0:01:01.4]} 15... Bxc3 {[%clk 0:02:26.7]} 16. bxc3 {[%clk 0:01:01.1]}
16... Rfe8+ {[%clk 0:02:25.9]} 17. Be3 {[%clk 0:00:58.7]} 17... Qb5 {[%clk
0:01:43.6]} 18. hxg6 {[%clk 0:00:56.2]} 18... hxg6 {[%clk 0:01:40.2]} 19. Qd4
{[%clk 0:00:50.9]} 19... f6 {[%clk 0:01:00.2]} 20. Bxc4 {[%clk 0:00:49.7]} 20...
Qb2 {[%clk 0:00:59.7]} 21. Bxd5+ {[%clk 0:00:43.8]} 21... cxd5 {[%clk
0:00:54.8]} 22. Qxd5+ {[%clk 0:00:44.1]} 22... Re6 {[%clk 0:00:54.4]} 23. Qxa8+
{[%clk 0:00:43.7]} 23... Kf7 {[%clk 0:00:54.5]} 24. O-O {[%clk 0:00:42]} 24...
Qb5 {[%clk 0:00:46.2]} 25. Rfd1 {[%clk 0:00:40.5]} 25... g5 {[%clk 0:00:38.8]}
26. Qd5 {[%clk 0:00:39.9]} 1-0

[Event "Early-Titled-Tuesday-Blitz-February-27-2024"]
[Site "Chess.com"]
[Date "2024.02.27"]
[Round "6"]
[White "DefiantChair"]
[Black "Zheenbekov86"]
[Result "1-0"]
[WhiteElo "2604"]
[BlackElo "2419"]
[TimeControl "180+1"]
[EndTime "9:03:25 PST"]
[Termination "DefiantChair won by resignation"]

1. d4 {[%clk 0:02:56.8]} 1... Nf6 {[%clk 0:02:59.4]} 2. c4 {[%clk 0:02:52.7]}
2... g6 {[%clk 0:02:58.9]} 3. Nc3 {[%clk 0:02:52]} 3... Bg7 {[%clk 0:02:57.2]}
4. e4 {[%clk 0:02:51.8]} 4... d6 {[%clk 0:02:57]} 5. Nf3 {[%clk 0:02:49.8]} 5...
O-O {[%clk 0:02:56.9]} 6. Be2 {[%clk 0:02:47.5]} 6... Nbd7 {[%clk 0:02:55.5]} 7.
O-O {[%clk 0:02:47.2]} 7... e5 {[%clk 0:02:55.3]} 8. d5 {[%clk 0:02:46.3]} 8...
a5 {[%clk 0:02:54.3]} 9. b3 {[%clk 0:02:40.9]} 9... Nc5 {[%clk 0:02:53.9]} 10.
Qc2 {[%clk 0:02:39.8]} 10... Nh5 {[%clk 0:02:48.6]} 11. Be3 {[%clk 0:02:34.4]}
11... b6 {[%clk 0:02:47.7]} 12. a3 {[%clk 0:02:34.3]} 12... Bd7 {[%clk 0:02:33]}
13. b4 {[%clk 0:02:24.6]} 13... Nb7 {[%clk 0:02:23.7]} 14. Ne1 {[%clk
0:02:05.8]} 14... Nf4 {[%clk 0:02:22.9]} 15. Bxf4 {[%clk 0:02:04.2]} 15... exf4
{[%clk 0:02:22.6]} 16. Nd3 {[%clk 0:02:02.8]} 16... f5 {[%clk 0:02:08]} 17. Nxf4
{[%clk 0:01:59.3]} 17... fxe4 {[%clk 0:02:07.5]} 18. Ne6 {[%clk 0:01:59]} 18...
Bxe6 {[%clk 0:02:07.4]} 19. dxe6 {[%clk 0:01:59.9]} 19... Qf6 {[%clk 0:02:01.2]}
20. Nd5 {[%clk 0:01:55.3]} 20... Qxe6 {[%clk 0:01:51]} 21. Nxc7 {[%clk 0:01:55]}
21... Qe7 {[%clk 0:01:44.6]} 22. Nxa8 {[%clk 0:01:44.1]} 22... Bxa1 {[%clk
0:01:44.9]} 23. Nxb6 {[%clk 0:01:44.3]} 23... Be5 {[%clk 0:01:37.1]} 24. Nd5
{[%clk 0:01:40.9]} 24... Qh4 {[%clk 0:01:25.5]} 25. g3 {[%clk 0:01:39.8]} 25...
Qd8 {[%clk 0:01:25.9]} 26. Qxe4 {[%clk 0:01:38.6]} 26... axb4 {[%clk 0:01:25.3]}
27. axb4 {[%clk 0:01:38.1]} 27... Re8 {[%clk 0:01:19.5]} 28. Qd3 {[%clk
0:01:34.6]} 28... Kg7 {[%clk 0:01:16.8]} 29. Bf3 {[%clk 0:01:34.5]} 29... Qb8
{[%clk 0:01:11.4]} 30. Kg2 {[%clk 0:01:34.3]} 30... Nd8 {[%clk 0:01:11.3]} 31.
h4 {[%clk 0:01:29.3]} 31... Ne6 {[%clk 0:01:10.1]} 32. h5 {[%clk 0:01:29]} 32...
Nd4 {[%clk 0:01:08]} 33. Re1 {[%clk 0:01:25.5]} 33... Qd8 {[%clk 0:00:56.6]} 34.
Be4 {[%clk 0:01:20.4]} 34... Qg5 {[%clk 0:00:49]} 35. f4 {[%clk 0:01:17.4]}
35... Bxf4 {[%clk 0:00:42.6]} 36. Nxf4 {[%clk 0:01:18.3]} 1-0

[Event "Early-Titled-Tuesday-Blitz-February-27-2024"]
[Site "Chess.com"]
[Date "2024.02.27"]
[Round "6"]
[White "PolandHussars"]
[Black "WiktoriaPOL"]
[Result "1-0"]
[WhiteElo "2558"]
[BlackElo "2250"]
[TimeControl "180+1"]
[EndTime "9:03:26 PST"]
[Termination "PolandHussars won by checkmate"]

1. g4 {[%clk 0:03:00.9]} 1... d5 {[%clk 0:02:59.1]} 2. Bg2 {[%clk 0:03:01.2]}
2... c6 {[%clk 0:02:54.1]} 3. g5 {[%clk 0:02:59.9]} 3... e5 {[%clk 0:02:53.8]}
4. d3 {[%clk 0:02:58.4]} 4... Be7 {[%clk 0:02:52.7]} 5. Nf3 {[%clk 0:02:54.6]}
5... Nd7 {[%clk 0:02:48.1]} 6. e4 {[%clk 0:02:50.7]} 6... h6 {[%clk 0:02:45]} 7.
h4 {[%clk 0:02:42]} 7... hxg5 {[%clk 0:02:40.7]} 8. hxg5 {[%clk 0:02:42.9]} 8...
Rxh1+ {[%clk 0:02:37.8]} 9. Bxh1 {[%clk 0:02:43.8]} 9... Qc7 {[%clk 0:02:20.4]}
10. exd5 {[%clk 0:02:36.8]} 10... cxd5 {[%clk 0:02:19.9]} 11. Nc3 {[%clk
0:02:37.4]} 11... Bb4 {[%clk 0:02:16.7]} 12. Bd2 {[%clk 0:02:37.5]} 12... Ne7
{[%clk 0:02:10.9]} 13. Qe2 {[%clk 0:02:31.8]} 13... a6 {[%clk 0:02:01.7]} 14.
O-O-O {[%clk 0:02:14.1]} 14... b5 {[%clk 0:02:00.2]} 15. Kb1 {[%clk 0:02:12.2]}
15... Bb7 {[%clk 0:01:59.8]} 16. Nxb5 {[%clk 0:02:10.3]} 16... axb5 {[%clk
0:01:53.7]} 17. Bxb4 {[%clk 0:02:10.4]} 17... Nc6 {[%clk 0:01:46.2]} 18. Bd2
{[%clk 0:02:08.6]} 18... b4 {[%clk 0:01:43.3]} 19. a3 {[%clk 0:01:51.6]} 19...
bxa3 {[%clk 0:01:39.7]} 20. b3 {[%clk 0:01:51.7]} 20... a2+ {[%clk 0:01:30.7]}
21. Ka1 {[%clk 0:01:52]} 21... Qd6 {[%clk 0:01:18.5]} 22. Bc3 {[%clk 0:01:51]}
22... d4 {[%clk 0:01:09.1]} 23. Bb2 {[%clk 0:01:48.3]} 23... Kd8 {[%clk
0:01:00.9]} 24. Nd2 {[%clk 0:01:46.2]} 24... Nb4 {[%clk 0:00:52.1]} 25. Nc4
{[%clk 0:01:45.5]} 25... Qc7 {[%clk 0:00:43.6]} 26. Qd2 {[%clk 0:01:40.7]} 26...
Nd5 {[%clk 0:00:36.8]} 27. Bxd5 {[%clk 0:01:38.2]} 27... Bxd5 {[%clk 0:00:37.7]}
28. f4 {[%clk 0:01:36.2]} 28... exf4 {[%clk 0:00:25.5]} 29. Bxd4 {[%clk
0:01:35.1]} 29... g6 {[%clk 0:00:22.1]} 30. Re1 {[%clk 0:01:29.2]} 30... Kc8
{[%clk 0:00:17.8]} 31. Re8+ {[%clk 0:01:26.5]} 31... Kb7 {[%clk 0:00:18]} 32.
Qb4+ {[%clk 0:01:26.5]} 32... Ka6 {[%clk 0:00:02.8]} 33. Qa4+ {[%clk 0:01:25.3]}
33... Kb7 {[%clk 0:00:03.1]} 34. Qxa8# {[%clk 0:01:24.5]} 1-0

[Event "Early-Titled-Tuesday-Blitz-February-27-2024"]
[Site "Chess.com"]
[Date "2024.02.27"]
[Round "6"]
[White "NovakRatko"]
[Black "lluiss"]
[Result "1-0"]
[WhiteElo "2473"]
[BlackElo "2169"]
[TimeControl "180+1"]
[EndTime "9:03:27 PST"]
[Termination "NovakRatko won by resignation"]

1. d4 {[%clk 0:02:59.2]} 1... d5 {[%clk 0:02:58.7]} 2. c4 {[%clk 0:02:59.4]}
2... c6 {[%clk 0:02:58.5]} 3. cxd5 {[%clk 0:02:59.5]} 3... cxd5 {[%clk
0:02:57.4]} 4. Nc3 {[%clk 0:03:00.4]} 4... Nc6 {[%clk 0:02:56.8]} 5. f3 {[%clk
0:03:01.1]} 5... e5 {[%clk 0:02:42.4]} 6. e3 {[%clk 0:02:56.6]} 6... exd4 {[%clk
0:02:40.3]} 7. exd4 {[%clk 0:02:56.6]} 7... Nf6 {[%clk 0:02:40.3]} 8. Bb5 {[%clk
0:02:56.4]} 8... Bd6 {[%clk 0:02:34]} 9. Nge2 {[%clk 0:02:54.9]} 9... O-O {[%clk
0:02:33.6]} 10. Bg5 {[%clk 0:02:55.1]} 10... Be7 {[%clk 0:02:18.4]} 11. O-O
{[%clk 0:02:52.7]} 11... a6 {[%clk 0:02:14.8]} 12. Bd3 {[%clk 0:02:51.8]} 12...
h6 {[%clk 0:02:11.1]} 13. Bh4 {[%clk 0:02:50.3]} 13... Be6 {[%clk 0:02:08.9]}
14. Kh1 {[%clk 0:02:47.8]} 14... Qd7 {[%clk 0:02:03.2]} 15. a3 {[%clk
0:02:43.4]} 15... Bf5 {[%clk 0:02:01.6]} 16. b4 {[%clk 0:02:38.7]} 16... Rfe8
{[%clk 0:01:55.2]} 17. Bf2 {[%clk 0:02:11]} 17... Bd6 {[%clk 0:01:50.4]} 18. Bh4
{[%clk 0:02:05.6]} 18... Be7 {[%clk 0:01:40.2]} 19. Bf2 {[%clk 0:01:53.1]} 19...
Rac8 {[%clk 0:01:39.1]} 20. Ng3 {[%clk 0:01:49.6]} 20... Bxd3 {[%clk 0:01:32.8]}
21. Qxd3 {[%clk 0:01:48.9]} 21... Bf8 {[%clk 0:01:17.1]} 22. Nf5 {[%clk
0:01:43]} 22... g6 {[%clk 0:01:15.7]} 23. Ng3 {[%clk 0:01:41.7]} 23... Bg7
{[%clk 0:01:15.8]} 24. Nge2 {[%clk 0:01:34.3]} 24... Re7 {[%clk 0:01:11.6]} 25.
Nf4 {[%clk 0:01:33.7]} 25... Rce8 {[%clk 0:01:09.3]} 26. b5 {[%clk 0:01:25.9]}
26... axb5 {[%clk 0:01:06.1]} 27. Qxb5 {[%clk 0:01:25.4]} 27... Rd8 {[%clk
0:00:47.6]} 28. Rab1 {[%clk 0:01:22]} 28... g5 {[%clk 0:00:46.1]} 29. Nd3 {[%clk
0:01:21.4]} 29... Qf5 {[%clk 0:00:27.9]} 30. Nc5 {[%clk 0:01:08.9]} 30... Ne8
{[%clk 0:00:26.9]} 31. Nxb7 {[%clk 0:00:58.3]} 31... Rd6 {[%clk 0:00:27.1]} 32.
Nxd6 {[%clk 0:00:56.2]} 1-0